Workbook

Sheet General Notes
A1: Green Remediation Environmental Evaluation Numerical (GREEN) tool
A2: General Notes
A4: For Green Best Management Practices (BMP) Scenarios Worksheets
B6: Legend for Scoring
B7: 1 to 2 | C7: Very Low environmental benefits.
B8: 3 to 4 | C8: Low environmental benefits.
B9: 5 to 6 | C9: Moderate environmental benefits.
B10: 7 to 8 | C10: High environmental benefits.
B11: 9 to 10 | C11: Very High environmental benefits.
B13: Applicable
B14: If the Applicable value is N, the Score cell will be gray and you will not need to enter a score value.
B15: If the Applicable value is Y, the Score cell will be clear and you will need to enter a score value.
B17: Score
B18: Guidance for scoring the five Green categories is provided in Section C.4 of the Guidance for Implementing Green Remediation for Sites in Washington State.
B19: If the score is greater than 10, the cell will turn yellow.
B20: Brief rationale for scoring should be noted in the scoring notes column.
B22: Weighting Factors
B23: Weighting factors (WF) are used for calculating a weighted mean that gives more (or less) importance to a specific metric. Ecology has established default WF for the GREEN tool. However, users can vary these WF based on site-specific considerations (e.g. increase weighting for water metric in drought areas). If site-specific WF are used, justification should be provided and the sum of WF should equal 100. (Weighting Factor Total cell will turn red if the total of all weighting factors does not equal 100).
A26: For Comparison Worksheet
B28: The color range for the comparison of scores will be from Green (Highest environmental benefit) to Red (Lowest environmental benefit).
A30: Example BMP Scenario Worksheets
B32: Two example Green BMP scenario worksheets (Example 1 Truck Dig and Haul and Example 2 Greener Dig and Haul) have been presented as part of this tool. Use the "clear entered values" button to reset.

Sheet Comparison of Scenarios
A1: Green Remediation Environmental Evaluation Numerical (GREEN) tool
A2: =MID(CELL("filename",A1),FIND("]",CELL("filename",A1))+1,32) -> Comparison of Scenarios
A4: Description of Green BMP Scenarios: Urban site dig and haul using diesel-powered excavators, offsite disposal of all excavated soil to regional landfill using trucks, restoration to grade using imported materials from regional sources delivered via truck, final surface grade consists of gravel and pavement with standard (pipe and gutter) stormwater conveyance.
A6: Green Remediation Metrics | C6: ='Example 1 Truck Dig and Haul'!A2 -> Example 1 Truck Dig and Haul | D6: ='Example 2 Greener Dig and Haul'!A2 -> Example 2 Greener Dig and Haul | E6: ='Green BMP Scenario 3'!A2 -> Green BMP Scenario 3 | F6: ='Green BMP Scenario 4'!A2 -> Green BMP Scenario 4 | G6: ='Green BMP Scenario 5'!A2 -> Green BMP Scenario 5
B8: Energy | C8: ='Example 1 Truck Dig and Haul'!G17 -> 96 | D8: ='Example 2 Greener Dig and Haul'!G17 -> 168 | E8: ='Green BMP Scenario 3'!G17 -> 0 | F8: ='Green BMP Scenario 4'!G17 -> 0 | G8: ='Green BMP Scenario 5'!G17 -> 0
B9: Water | C9: ='Example 1 Truck Dig and Haul'!G24 -> 46.66666667 | D9: ='Example 2 Greener Dig and Haul'!G24 -> 80 | E9: ='Green BMP Scenario 3'!G24 -> 0 | F9: ='Green BMP Scenario 4'!G24 -> 0 | G9: ='Green BMP Scenario 5'!G24 -> 0
B10: Material and Waste | C10: ='Example 1 Truck Dig and Haul'!G31 -> 50 | D10: ='Example 2 Greener Dig and Haul'!G31 -> 135 | E10: ='Green BMP Scenario 3'!G31 -> 0 | F10: ='Green BMP Scenario 4'!G31 -> 0 | G10: ='Green BMP Scenario 5'!G31 -> 0
B11: Air | C11: ='Example 1 Truck Dig and Haul'!G38 -> 41.66666667 | D11: ='Example 2 Greener Dig and Haul'!G38 -> 158.3333333 | E11: ='Green BMP Scenario 3'!G38 -> 0 | F11: ='Green BMP Scenario 4'!G38 -> 0 | G11: ='Green BMP Scenario 5'!G38 -> 0
B12: Land and Ecosystems | C12: ='Example 1 Truck Dig and Haul'!G44 -> 40 | D12: ='Example 2 Greener Dig and Haul'!G44 -> 110 | E12: ='Green BMP Scenario 3'!G44 -> 0 | F12: ='Green BMP Scenario 4'!G44 -> 0 | G12: ='Green BMP Scenario 5'!G44 -> 0
B13: Total Score for Green BMP Scenario (High Score = Greater Environmental Benefit) | C13: ='Example 1 Truck Dig and Haul'!G49 -> 274.3333333 | D13: ='Example 2 Greener Dig and Haul'!G49 -> 651.3333333 | E13: ='Green BMP Scenario 3'!G49 -> 0 | F13: ='Green BMP Scenario 4'!G49 -> 0 | G13: ='Green BMP Scenario 5'!G49 -> 0
B14: Costs | C14: ='Example 1 Truck Dig and Haul'!E47 -> 275000 | D14: ='Example 2 Greener Dig and Haul'!E47 -> 250000 | E14: ='Green BMP Scenario 3'!E47 -> 0 | F14: ='Green BMP Scenario 4'!E47 -> 0 | G14: ='Green BMP Scenario 5'!E47 -> 0
A16: The total Green BMP Scenario scores from the individual worksheets will transfer automatically to this worksheet.
A17: The color range for the comparison of scores will be from Green (Highest environmental benefit) to Red (Lowest environmental benefit).

Sheet Example 1 Truck Dig and Haul
A1: Green Remediation Environmental Evaluation Numerical (GREEN) tool
A2: =MID(CELL("filename",A1),FIND("]",CELL("filename",A1))+1,32) -> Example 1 Truck Dig and Haul
A4: Description of Green BMP Scenario: Urban site dig and haul using diesel-powered excavators, offsite disposal of all excavated soil to regional landfill using trucks, restoration to grade using imported materials from regional sources delivered via truck, final surface grade consists of gravel and pavement with standard (pipe and gutter) stormwater conveyance.
A7: Green Remediation Metrics | D7: Applicable | E7: Score | F7: Weighting | G7: Weighted | H7: Scoring
D8: (Y/N) | E8: (1 to 10) | F8: Factor | G8: Score | H8: Notes
A10: Energy
B11: Minimize use of non-renewable fuels (no idling, use of rail, efficient engines, etc.) | D11: =IF(E11>0,"Y","N") -> Y | E11: 2 | H11: Heavy reliance on non-renewable diesel
B12: Maximize use of renewable energy (use of solar, wind, etc.) | D12: Y | E12: 1 | H12: No use of renewables
B13: Use local goods and services | D13: Y | E13: 4 | H13: Limited reliance on local fill and landfills
B14: Use chemicals/materials that are produced with less energy (natural or recycled) | D14: N | H14: Not applicable
B15: Avoid double handling of materials | D15: Y | E15: 7 | H15: Soil loaded directly onto trucks
B16: Minimize overall energy use | D16: Y | E16: 2 | H16: Energy intensive option
C17: Total Score (Average x WF) | E17: =IF((SUM(E11:E16)>0), AVERAGE(E11:E16), 0) -> 3.2 | F17: 30 | G17: =IF(E17>0,E17*F17, 0) -> 96
A19: Water
B20: Minimize freshwater consumption | D20: Y | E20: 7 | H20: Low water usage
B21: Recycle water or use reclaimed water (recirculation treatment systems, etc.) | D21: =IF(E21>0,"Y","N") -> N | H21: Not applicable
B22: Use low impact development techniques to manage stormwater | D22: Y | E22: 3 | H22: Some infiltration but no treatment
B23: Use native, drought-resistant plants for landscaping and habitat restoration | D23: Y | E23: 4 | H23: No vegetative restoration
C24: Total Score (Average x WF) | E24: =IF((SUM(E20:E23)>0), AVERAGE(E20:E23), 0) -> 4.666666667 | F24: 10 | G24: =IF(E24>0,E24*F24, 0) -> 46.66666667
A26: Materials and Waste
B27: Minimize waste materials generated for disposal | D27: Y | E27: 2 | H27: Limited soil segregation and reuse
B28: Minimize consumption of raw and virgin materials | D28: Y | E28: 3 | H28: Fill derived from commercial soil facility
B29: Recycle or reuse equipment and materials | D29: Y | E29: 1 | H29: No soil reuse or recycling
B30: Use local facilities for waste recycling, reuse, disposal, and treatment | D30: Y | E30: 4 | H30: Use regional but not local sources
C31: Total Score (Average x WF) | E31: =IF((SUM(E27:E30)>0), AVERAGE(E27:E30), 0) -> 2.5 | F31: 20 | G31: =IF(E31>0,E31*F31, 0) -> 50
A33: Air
B34: Minimize emissions of greenhouse gases | D34: Y | E34: 2 | H34: Limited use of low emission eqpt
B35: Minimize emissions of other air pollutants | D35: Y | E35: 2 | H35: Limited use of low emission eqpt
B36: Use clean fuels and engine technologies | D36: Y | E36: 1 | H36: No use of clean technology
B37: Use materials and chemicals produced with less air emissions | D37: N | H37: Not applicable
C38: Total Score (Average x WF) | E38: =IF((SUM(E34:E37)>0), AVERAGE(E34:E37), 0) -> 1.666666667 | F38: 25 | G38: =IF(E38>0,E38*F38, 0) -> 41.66666667
A40: Land and Ecosystems
B41: Create and restore functional habitat | D41: Y | E41: 1 | H41: No revegetation
B42: Maintain and protect existing functional habitat | D42: Y | E42: 5 | H42: Urban low habitat potential
B43: Minimize nuisances to the community such as noise, odor, emissions, and light | D43: Y | E43: 2 | H43: High level truck noise and emissions
C44: Total Score (Average x WF) | E44: =IF((SUM(E41:E43)>0), AVERAGE(E41:E43), 0) -> 2.666666667 | F44: 15 | G44: =IF(E44>0,E44*F44, 0) -> 40
A46: Costs (Optional)
B47: Total Cost of Remedy | D47: Y | E47: 275000 | H47: Feasibility Study Estimate
C49: Total Score for Green BMP Scenario (High Score = Greater Environmental Benefit) | G49: =SUM(G11:G44) -> 274.3333333
D50: Weighting Factor Total | F50: =SUM(F17:F49) -> 100
A52: Legend for Scoring
B53: ='General Notes'!B7 -> 1 to 2 | C53: ='General Notes'!C7 -> Very Low environmental benefits.
B54: ='General Notes'!B8 -> 3 to 4 | C54: ='General Notes'!C8 -> Low environmental benefits.
B55: ='General Notes'!B9 -> 5 to 6 | C55: ='General Notes'!C9 -> Moderate environmental benefits.
B56: ='General Notes'!B10 -> 7 to 8 | C56: ='General Notes'!C10 -> High environmental benefits.
B57: ='General Notes'!B11 -> 9 to 10 | C57: ='General Notes'!C11 -> Very High environmental benefits.
A59: Applicable
B60: ='General Notes'!B14 -> If the Applicable value is N, the Score cell will be gray and you will not need to enter a score value.
B61: ='General Notes'!B15 -> If the Applicable value is Y, the Score cell will be clear and you will need to enter a score value.
A63: Score
B64: ='General Notes'!B18 -> Guidance for scoring the five Green categories is provided in Section C.4 of the Guidance for Implementing Green Remediation for Sites in Washington State.
B65: If the score is greater than 10, the cell will turn yellow.
B66: Brief rationale for scoring should be noted in the scoring notes column.
A68: Weighting Factors
B69: ='General Notes'!B23 -> Weighting factors (WF) are used for calculating a weighted mean that gives more (or less) importance to a specific metric. Ecology has established default WF for the GREEN tool. However, users can vary these WF based on site-specific considerations (e.g. increase weighting for water metric in drought areas). If site-specific WF are used, justification should be provided and the sum of WF should equal 100. (Weighting Factor Total cell will turn red if the total of all weighting factors does not equal 100).

Sheet Example 2 Greener Dig and Haul
A1: Green Remediation Environmental Evaluation Numerical (GREEN) tool
A2: =MID(CELL("filename",A1),FIND("]",CELL("filename",A1))+1,32) -> Example 2 Greener Dig and Haul
A4: Description of Green BMP Scenario: Urban site dig and haul using clean diesel-powered excavators, offsite disposal of greater than MTCA soil to local landfill using rail, use below MTCA soil as fill along with imported materials from local sources delivered via rail, final surface grade consists of landscaping, rain gardens, and permeable pavement
A7: Green Remediation Metrics | D7: Applicable | E7: Score | F7: Weighting | G7: Weighted | H7: Scoring
D8: (Y/N) | E8: (1 to 10) | F8: Factor | G8: Score | H8: Notes
A10: Energy
B11: Minimize use of non-renewable fuels (no idling, use of rail, efficient engines, etc.) | D11: Y | E11: 7 | H11: Less reliance on non-renewable diesel
B12: Maximize use of renewable energy (use of solar, wind, etc.) | D12: Y | E12: 5 | H12: Use biodiesel
B13: Use local goods and services | D13: Y | E13: 6 | H13: Reduce travel using local fill and landfills
B14: Use chemicals/materials that are produced with less energy (natural or recycled) | D14: =IF(E14>0,"Y","N") -> N | H14: Not applicable
B15: Avoid double handling of materials | D15: Y | E15: 4 | H15: Some double handling of clean soil
B16: Minimize overall energy use | D16: Y | E16: 6 | H16: Rail low energy option, local sources
C17: Total Score (Average x WF) | E17: =IF((SUM(E11:E16)>0), AVERAGE(E11:E16), 0) -> 5.6 | F17: 30 | G17: =IF(E17>0,E17*F17, 0) -> 168
A19: Water
B20: Minimize freshwater consumption | D20: Y | E20: 7 | H20: Low water usage
B21: Recycle water or use reclaimed water (recirculation treatment systems, etc.) | D21: N | H21: Not applicable
B22: Use low impact development techniques to manage stormwater | D22: Y | E22: 9 | H22: Use of LID stormwater BMPs
B23: Use native, drought-resistant plants for landscaping and habitat restoration | D23: Y | E23: 8 | H23: Use of low water native vegetation
C24: Total Score (Average x WF) | E24: =IF((SUM(E20:E23)>0), AVERAGE(E20:E23), 0) -> 8 | F24: 10 | G24: =IF(E24>0,E24*F24, 0) -> 80
A26: Materials and Waste
B27: Minimize waste materials generated for disposal | D27: Y | E27: 6 | H27: Soil segregation and reuse
B28: Minimize consumption of raw and virgin materials | D28: Y | E28: 6 | H28: Minimize imported fill
B29: Recycle or reuse equipment and materials | D29: Y | E29: 7 | H29: Reuse of clean site soil
B30: Use local facilities for waste recycling, reuse, disposal, and treatment | D30: Y | E30: 8 | H30: Use local sources
C31: Total Score (Average x WF) | E31: =IF((SUM(E27:E30)>0), AVERAGE(E27:E30), 0) -> 6.75 | F31: 20 | G31: =IF(E31>0,E31*F31, 0) -> 135
A33: Air
B34: Minimize emissions of greenhouse gases | D34: Y | E34: 5 | H34: Use of lower emission equipment
B35: Minimize emissions of other air pollutants | D35: Y | E35: 7 | H35: Minimal use of high emission engines
B36: Use clean fuels and engine technologies | D36: Y | E36: 7 | H36: High use of clean engine technology
B37: Use materials and chemicals produced with less air emissions | D37: N | H37: Not applicable
C38: Total Score (Average x WF) | E38: =IF((SUM(E34:E37)>0), AVERAGE(E34:E37), 0) -> 6.333333333 | F38: 25 | G38: =IF(E38>0,E38*F38, 0) -> 158.3333333
A40: Land and Ecosystems
B41: Create and restore functional habitat | D41: Y | E41: 9 | H41: Create new habitat via revegetation/LID
B42: Maintain and protect existing functional habitat | D42: Y | E42: 8 | H42: Urban low existing habitat
B43: Minimize nuisances to the community such as noise, odor, emissions, and light | D43: Y | E43: 5 | H43: High level truck noise, low emissions
C44: Total Score (Average x WF) | E44: =IF((SUM(E41:E43)>0), AVERAGE(E41:E43), 0) -> 7.333333333 | F44: 15 | G44: =IF(E44>0,E44*F44, 0) -> 110
A46: Costs (Optional)
B47: Total Cost of Remedy | D47: Y | E47: 250000 | H47: FS Estimate - less soil disposal and fill
C49: Total Score for Green BMP Scenario (High Score = Greater Environmental Benefit) | G49: =SUM(G11:G44) -> 651.3333333
D50: Weighting Factor Total | F50: =SUM(F17:F49) -> 100
A52: Legend for Scoring
B53: ='General Notes'!B7 -> 1 to 2 | C53: ='General Notes'!C7 -> Very Low environmental benefits.
B54: ='General Notes'!B8 -> 3 to 4 | C54: ='General Notes'!C8 -> Low environmental benefits.
B55: ='General Notes'!B9 -> 5 to 6 | C55: ='General Notes'!C9 -> Moderate environmental benefits.
B56: ='General Notes'!B10 -> 7 to 8 | C56: ='General Notes'!C10 -> High environmental benefits.
B57: ='General Notes'!B11 -> 9 to 10 | C57: ='General Notes'!C11 -> Very High environmental benefits.
A59: Applicable
B60: ='General Notes'!B14 -> If the Applicable value is N, the Score cell will be gray and you will not need to enter a score value.
B61: ='General Notes'!B15 -> If the Applicable value is Y, the Score cell will be clear and you will need to enter a score value.
A63: Score
B64: ='General Notes'!B18 -> Guidance for scoring the five Green categories is provided in Section C.4 of the Guidance for Implementing Green Remediation for Sites in Washington State.
B65: If the score is greater than 10, the cell will turn yellow.
B66: Brief rationale for scoring should be noted in the scoring notes column.
A68: Weighting Factors
B69: ='General Notes'!B23 -> Weighting factors (WF) are used for calculating a weighted mean that gives more (or less) importance to a specific metric. Ecology has established default WF for the GREEN tool. However, users can vary these WF based on site-specific considerations (e.g. increase weighting for water metric in drought areas). If site-specific WF are used, justification should be provided and the sum of WF should equal 100. (Weighting Factor Total cell will turn red if the total of all weighting factors does not equal 100).

Sheet Green BMP Scenario 3
A1: Green Remediation Environmental Evaluation Numerical (GREEN) tool
A2: =MID(CELL("filename",A1),FIND("]",CELL("filename",A1))+1,32) -> Green BMP Scenario 3
A4: Description of Green BMP Scenario 3: (Please fill in description)
A7: Green Remediation Metrics | D7: Applicable | E7: Score | F7: Weighting | G7: Weighted | H7: Scoring
D8: (Y/N) | E8: (1 to 10) | F8: Factor | G8: Score | H8: Notes
A10: Energy
B11: Minimize use of non-renewable fuels (no idling, use of rail, efficient engines, etc.) | D11: =IF(E11>0,"Y","N") -> N
B12: Maximize use of renewable energy (use of solar, wind, etc.) | D12: N
B13: Use local goods and services | D13: N
B14: Use chemicals/materials that are produced with less energy (natural or recycled) | D14: N
B15: Avoid double handling of materials | D15: N
B16: Minimize overall energy use | D16: N
C17: Total Score (Average x WF) | E17: =IF((SUM(E11:E16)>0), AVERAGE(E11:E16), 0) -> 0 | F17: 30 | G17: =IF(E17>0,E17*F17, 0) -> 0
A19: Water
B20: Minimize freshwater consumption | D20: =IF(E20>0,"Y","N") -> N
B21: Recycle water or use reclaimed water (recirculation treatment systems, etc.) | D21: =IF(E21>0,"Y","N") -> N
B22: Use low impact development techniques to manage stormwater | D22: N
B23: Use native, drought-resistant plants for landscaping and habitat restoration | D23: N
C24: Total Score (Average x WF) | E24: =IF((SUM(E20:E23)>0), AVERAGE(E20:E23), 0) -> 0 | F24: 10 | G24: =IF(E24>0,E24*F24, 0) -> 0
A26: Materials and Waste
B27: Minimize waste materials generated for disposal | D27: =IF(E27>0,"Y","N") -> N
B28: Minimize consumption of raw and virgin materials | D28: =IF(E28>0,"Y","N") -> N
B29: Recycle or reuse equipment and materials | D29: N
B30: Use local facilities for waste recycling, reuse, disposal, and treatment | D30: N
C31: Total Score (Average x WF) | E31: =IF((SUM(E27:E30)>0), AVERAGE(E27:E30), 0) -> 0 | F31: 20 | G31: =IF(E31>0,E31*F31, 0) -> 0
A33: Air
B34: Minimize emissions of greenhouse gases | D34: =IF(E34>0,"Y","N") -> N
B35: Minimize emissions of other air pollutants | D35: =IF(E35>0,"Y","N") -> N
B36: Use clean fuels and engine technologies | D36: N
B37: Use materials and chemicals produced with less air emissions | D37: N
C38: Total Score (Average x WF) | E38: =IF((SUM(E34:E37)>0), AVERAGE(E34:E37), 0) -> 0 | F38: 25 | G38: =IF(E38>0,E38*F38, 0) -> 0
A40: Land and Ecosystems
B41: Create and restore functional habitat | D41: =IF(E41>0,"Y","N") -> N
B42: Maintain and protect existing functional habitat | D42: =IF(E42>0,"Y","N") -> N
B43: Minimize nuisances to the community such as noise, odor, emissions, and light | D43: N
C44: Total Score (Average x WF) | E44: =IF((SUM(E41:E43)>0), AVERAGE(E41:E43), 0) -> 0 | F44: 15 | G44: =IF(E44>0,E44*F44, 0) -> 0
A46: Costs (Optional)
B47: Total Cost of Remedy | D47: =IF(E47>0,"Y","N") -> N
C49: Total Score for Green BMP Scenario (High Score = Greater Environmental Benefit) | G49: =SUM(G11:G44) -> 0
D50: Weighting Factor Total | F50: =SUM(F17:F49) -> 100
A52: Legend for Scoring
B53: ='General Notes'!B7 -> 1 to 2 | C53: ='General Notes'!C7 -> Very Low environmental benefits.
B54: ='General Notes'!B8 -> 3 to 4 | C54: ='General Notes'!C8 -> Low environmental benefits.
B55: ='General Notes'!B9 -> 5 to 6 | C55: ='General Notes'!C9 -> Moderate environmental benefits.
B56: ='General Notes'!B10 -> 7 to 8 | C56: ='General Notes'!C10 -> High environmental benefits.
B57: ='General Notes'!B11 -> 9 to 10 | C57: ='General Notes'!C11 -> Very High environmental benefits.
A59: Applicable
B60: ='General Notes'!B14 -> If the Applicable value is N, the Score cell will be gray and you will not need to enter a score value.
B61: ='General Notes'!B15 -> If the Applicable value is Y, the Score cell will be clear and you will need to enter a score value.
A63: Score
B64: ='General Notes'!B18 -> Guidance for scoring the five Green categories is provided in Section C.4 of the Guidance for Implementing Green Remediation for Sites in Washington State.
B65: If the score is greater than 10, the cell will turn yellow.
B66: Brief rationale for scoring should be noted in the scoring notes column.
A68: Weighting Factors
B69: ='General Notes'!B23 -> Weighting factors (WF) are used for calculating a weighted mean that gives more (or less) importance to a specific metric. Ecology has established default WF for the GREEN tool. However, users can vary these WF based on site-specific considerations (e.g. increase weighting for water metric in drought areas). If site-specific WF are used, justification should be provided and the sum of WF should equal 100. (Weighting Factor Total cell will turn red if the total of all weighting factors does not equal 100).

Sheet Green BMP Scenario 4
A1: Green Remediation Environmental Evaluation Numerical (GREEN) tool
A2: =MID(CELL("filename",A1),FIND("]",CELL("filename",A1))+1,32) -> Green BMP Scenario 4
A4: Description of Green BMP Scenario 4: (Please fill in description)
A7: Green Remediation Metrics | D7: Applicable | E7: Score | F7: Weighting | G7: Weighted | H7: Scoring
D8: (Y/N) | E8: (1 to 10) | F8: Factor | G8: Score | H8: Notes
A10: Energy
B11: Minimize use of non-renewable fuels (no idling, use of rail, efficient engines, etc.) | D11: =IF(E11>0,"Y","N") -> N
B12: Maximize use of renewable energy (use of solar, wind, etc.) | D12: N
B13: Use local goods and services | D13: N
B14: Use chemicals/materials that are produced with less energy (natural or recycled) | D14: N
B15: Avoid double handling of materials | D15: N
B16: Minimize overall energy use | D16: N
C17: Total Score (Average x WF) | E17: =IF((SUM(E11:E16)>0), AVERAGE(E11:E16), 0) -> 0 | F17: 30 | G17: =IF(E17>0,E17*F17, 0) -> 0
A19: Water
B20: Minimize freshwater consumption | D20: =IF(E20>0,"Y","N") -> N
B21: Recycle water or use reclaimed water (recirculation treatment systems, etc.) | D21: =IF(E21>0,"Y","N") -> N
B22: Use low impact development techniques to manage stormwater | D22: N
B23: Use native, drought-resistant plants for landscaping and habitat restoration | D23: N
C24: Total Score (Average x WF) | E24: =IF((SUM(E20:E23)>0), AVERAGE(E20:E23), 0) -> 0 | F24: 10 | G24: =IF(E24>0,E24*F24, 0) -> 0
A26: Materials and Waste
B27: Minimize waste materials generated for disposal | D27: =IF(E27>0,"Y","N") -> N
B28: Minimize consumption of raw and virgin materials | D28: =IF(E28>0,"Y","N") -> N
B29: Recycle or reuse equipment and materials | D29: N
B30: Use local facilities for waste recycling, reuse, disposal, and treatment | D30: N
C31: Total Score (Average x WF) | E31: =IF((SUM(E27:E30)>0), AVERAGE(E27:E30), 0) -> 0 | F31: 20 | G31: =IF(E31>0,E31*F31, 0) -> 0
A33: Air
B34: Minimize emissions of greenhouse gases | D34: =IF(E34>0,"Y","N") -> N
B35: Minimize emissions of other air pollutants | D35: =IF(E35>0,"Y","N") -> N
B36: Use clean fuels and engine technologies | D36: N
B37: Use materials and chemicals produced with less air emissions | D37: N
C38: Total Score (Average x WF) | E38: =IF((SUM(E34:E37)>0), AVERAGE(E34:E37), 0) -> 0 | F38: 25 | G38: =IF(E38>0,E38*F38, 0) -> 0
A40: Land and Ecosystems
B41: Create and restore functional habitat | D41: =IF(E41>0,"Y","N") -> N
B42: Maintain and protect existing functional habitat | D42: =IF(E42>0,"Y","N") -> N
B43: Minimize nuisances to the community such as noise, odor, emissions, and light | D43: N
C44: Total Score (Average x WF) | E44: =IF((SUM(E41:E43)>0), AVERAGE(E41:E43), 0) -> 0 | F44: 15 | G44: =IF(E44>0,E44*F44, 0) -> 0
A46: Costs (Optional)
B47: Total Cost of Remedy | D47: =IF(E47>0,"Y","N") -> N
C49: Total Score for Green BMP Scenario (High Score = Greater Environmental Benefit) | G49: =SUM(G11:G44) -> 0
D50: Weighting Factor Total | F50: =SUM(F17:F49) -> 100
A52: Legend for Scoring
B53: ='General Notes'!B7 -> 1 to 2 | C53: ='General Notes'!C7 -> Very Low environmental benefits.
B54: ='General Notes'!B8 -> 3 to 4 | C54: ='General Notes'!C8 -> Low environmental benefits.
B55: ='General Notes'!B9 -> 5 to 6 | C55: ='General Notes'!C9 -> Moderate environmental benefits.
B56: ='General Notes'!B10 -> 7 to 8 | C56: ='General Notes'!C10 -> High environmental benefits.
B57: ='General Notes'!B11 -> 9 to 10 | C57: ='General Notes'!C11 -> Very High environmental benefits.
A59: Applicable
B60: ='General Notes'!B14 -> If the Applicable value is N, the Score cell will be gray and you will not need to enter a score value.
B61: ='General Notes'!B15 -> If the Applicable value is Y, the Score cell will be clear and you will need to enter a score value.
A63: Score
B64: ='General Notes'!B18 -> Guidance for scoring the five Green categories is provided in Section C.4 of the Guidance for Implementing Green Remediation for Sites in Washington State.
B65: If the score is greater than 10, the cell will turn yellow.
B66: Brief rationale for scoring should be noted in the scoring notes column.
A68: Weighting Factors
B69: ='General Notes'!B23 -> Weighting factors (WF) are used for calculating a weighted mean that gives more (or less) importance to a specific metric. Ecology has established default WF for the GREEN tool. However, users can vary these WF based on site-specific considerations (e.g. increase weighting for water metric in drought areas). If site-specific WF are used, justification should be provided and the sum of WF should equal 100. (Weighting Factor Total cell will turn red if the total of all weighting factors does not equal 100).

Sheet Green BMP Scenario 5
A1: Green Remediation Environmental Evaluation Numerical (GREEN) tool
A2: =MID(CELL("filename",A1),FIND("]",CELL("filename",A1))+1,32) -> Green BMP Scenario 5
A4: Description of Green BMP Scenario 5: (Please fill in description)
A7: Green Remediation Metrics | D7: Applicable | E7: Score | F7: Weighting | G7: Weighted | H7: Scoring
D8: (Y/N) | E8: (1 to 10) | F8: Factor | G8: Score | H8: Notes
A10: Energy
B11: Minimize use of non-renewable fuels (no idling, use of rail, efficient engines, etc.) | D11: =IF(E11>0,"Y","N") -> N
B12: Maximize use of renewable energy (use of solar, wind, etc.) | D12: N
B13: Use local goods and services | D13: N
B14: Use chemicals/materials that are produced with less energy (natural or recycled) | D14: N
B15: Avoid double handling of materials | D15: N
B16: Minimize overall energy use | D16: N
C17: Total Score (Average x WF) | E17: =IF((SUM(E11:E16)>0), AVERAGE(E11:E16), 0) -> 0 | F17: 30 | G17: =IF(E17>0,E17*F17, 0) -> 0
A19: Water
B20: Minimize freshwater consumption | D20: =IF(E20>0,"Y","N") -> N
B21: Recycle water or use reclaimed water (recirculation treatment systems, etc.) | D21: =IF(E21>0,"Y","N") -> N
B22: Use low impact development techniques to manage stormwater | D22: N
B23: Use native, drought-resistant plants for landscaping and habitat restoration | D23: N
C24: Total Score (Average x WF) | E24: =IF((SUM(E20:E23)>0), AVERAGE(E20:E23), 0) -> 0 | F24: 10 | G24: =IF(E24>0,E24*F24, 0) -> 0
A26: Materials and Waste
B27: Minimize waste materials generated for disposal | D27: =IF(E27>0,"Y","N") -> N
B28: Minimize consumption of raw and virgin materials | D28: =IF(E28>0,"Y","N") -> N
B29: Recycle or reuse equipment and materials | D29: N
B30: Use local facilities for waste recycling, reuse, disposal, and treatment | D30: N
C31: Total Score (Average x WF) | E31: =IF((SUM(E27:E30)>0), AVERAGE(E27:E30), 0) -> 0 | F31: 20 | G31: =IF(E31>0,E31*F31, 0) -> 0
A33: Air
B34: Minimize emissions of greenhouse gases | D34: =IF(E34>0,"Y","N") -> N
B35: Minimize emissions of other air pollutants | D35: =IF(E35>0,"Y","N") -> N
B36: Use clean fuels and engine technologies | D36: N
B37: Use materials and chemicals produced with less air emissions | D37: N
C38: Total Score (Average x WF) | E38: =IF((SUM(E34:E37)>0), AVERAGE(E34:E37), 0) -> 0 | F38: 25 | G38: =IF(E38>0,E38*F38, 0) -> 0
A40: Land and Ecosystems
B41: Create and restore functional habitat | D41: =IF(E41>0,"Y","N") -> N
B42: Maintain and protect existing functional habitat | D42: =IF(E42>0,"Y","N") -> N
B43: Minimize nuisances to the community such as noise, odor, emissions, and light | D43: N
C44: Total Score (Average x WF) | E44: =IF((SUM(E41:E43)>0), AVERAGE(E41:E43), 0) -> 0 | F44: 15 | G44: =IF(E44>0,E44*F44, 0) -> 0
A46: Costs (Optional)
B47: Total Cost of Remedy | D47: =IF(E47>0,"Y","N") -> N
C49: Total Score for Green BMP Scenario (High Score = Greater Environmental Benefit) | G49: =SUM(G11:G44) -> 0
D50: Weighting Factor Total | F50: =SUM(F17:F49) -> 100
A52: Legend for Scoring
B53: ='General Notes'!B7 -> 1 to 2 | C53: ='General Notes'!C7 -> Very Low environmental benefits.
B54: ='General Notes'!B8 -> 3 to 4 | C54: ='General Notes'!C8 -> Low environmental benefits.
B55: ='General Notes'!B9 -> 5 to 6 | C55: ='General Notes'!C9 -> Moderate environmental benefits.
B56: ='General Notes'!B10 -> 7 to 8 | C56: ='General Notes'!C10 -> High environmental benefits.
B57: ='General Notes'!B11 -> 9 to 10 | C57: ='General Notes'!C11 -> Very High environmental benefits.
A59: Applicable
B60: ='General Notes'!B14 -> If the Applicable value is N, the Score cell will be gray and you will not need to enter a score value.
B61: ='General Notes'!B15 -> If the Applicable value is Y, the Score cell will be clear and you will need to enter a score value.
A63: Score
B64: ='General Notes'!B18 -> Guidance for scoring the five Green categories is provided in Section C.4 of the Guidance for Implementing Green Remediation for Sites in Washington State.
B65: If the score is greater than 10, the cell will turn yellow.
B66: Brief rationale for scoring should be noted in the scoring notes column.
A68: Weighting Factors
B69: ='General Notes'!B23 -> Weighting factors (WF) are used for calculating a weighted mean that gives more (or less) importance to a specific metric. Ecology has established default WF for the GREEN tool. However, users can vary these WF based on site-specific considerations (e.g. increase weighting for water metric in drought areas). If site-specific WF are used, justification should be provided and the sum of WF should equal 100. (Weighting Factor Total cell will turn red if the total of all weighting factors does not equal 100).
